[Event "Early-Titled-Tuesday-Blitz-May-14-2024"]
[Site "Chess.com"]
[Date "2024.05.14"]
[Round "9"]
[White "Aygehovit1992"]
[Black "CarlosjPineror"]
[Result "1/2-1/2"]
[WhiteElo "2863"]
[BlackElo "2752"]
[TimeControl "180+1"]
[EndTime "9:48:30 PDT"]
[Termination "Game drawn - insufficient material"]

1. e4 {[%clk 0:03:00.9]} 1... c5 {[%clk 0:02:57.6]} 2. Nc3 {[%clk 0:03:00.3]}
2... e6 {[%clk 0:02:57.3]} 3. d4 {[%clk 0:02:58.9]} 3... cxd4 {[%clk 0:02:57.1]}
4. Qxd4 {[%clk 0:02:59.8]} 4... Nc6 {[%clk 0:02:57.4]} 5. Qe3 {[%clk 0:03:00]}
5... a6 {[%clk 0:02:55.6]} 6. Nf3 {[%clk 0:02:47.8]} 6... Qc7 {[%clk 0:02:55]}
7. e5 {[%clk 0:02:41.6]} 7... Nge7 {[%clk 0:02:46.9]} 8. Bd3 {[%clk 0:02:31.9]}
8... b5 {[%clk 0:02:41]} 9. Bd2 {[%clk 0:02:30.2]} 9... Bb7 {[%clk 0:02:36.2]}
10. O-O {[%clk 0:02:30.2]} 10... Ng6 {[%clk 0:02:36.8]} 11. Rfe1 {[%clk
0:02:30.3]} 11... Be7 {[%clk 0:02:33.9]} 12. a4 {[%clk 0:02:15.5]} 12... b4
{[%clk 0:02:30]} 13. Na2 {[%clk 0:02:12.6]} 13... O-O {[%clk 0:02:27.1]} 14. c3
{[%clk 0:02:12.8]} 14... bxc3 {[%clk 0:02:18.2]} 15. Bxc3 {[%clk 0:02:13.7]}
15... f5 {[%clk 0:02:02.8]} 16. exf6 {[%clk 0:02:13.2]} 16... Bxf6 {[%clk
0:02:03.1]} 17. Bxg6 {[%clk 0:02:11]} 17... hxg6 {[%clk 0:02:02.7]} 18. Rad1
{[%clk 0:02:10.9]} 18... Ne7 {[%clk 0:01:48.3]} 19. Be5 {[%clk 0:02:02.2]} 19...
Qc6 {[%clk 0:01:01.9]} 20. Rd6 {[%clk 0:01:45.7]} 20... Qc4 {[%clk 0:00:55.4]}
21. Bxf6 {[%clk 0:00:57.2]} 21... Rxf6 {[%clk 0:00:56.3]} 22. Ne5 {[%clk
0:00:57.4]} 22... Qxa2 {[%clk 0:00:48.4]} 23. Rxd7 {[%clk 0:00:57.7]} 23... Nf5
{[%clk 0:00:45.5]} 24. Qg5 {[%clk 0:00:54.5]} 24... Bd5 {[%clk 0:00:42.2]} 25.
Nxg6 {[%clk 0:00:52]} 25... Qb3 {[%clk 0:00:31.4]} 26. Qh5 {[%clk 0:00:29.6]}
26... Rxg6 {[%clk 0:00:24.9]} 27. Qxg6 {[%clk 0:00:30.5]} 27... Rf8 {[%clk
0:00:25.2]} 28. h3 {[%clk 0:00:17.5]} 28... Qxb2 {[%clk 0:00:25]} 29. Rf1 {[%clk
0:00:16.5]} 29... Qf6 {[%clk 0:00:25.3]} 30. Qxf6 {[%clk 0:00:16.6]} 30... Rxf6
{[%clk 0:00:25.6]} 31. Rc1 {[%clk 0:00:14.8]} 31... Nd4 {[%clk 0:00:25]} 32.
Rc8+ {[%clk 0:00:14.7]} 32... Kh7 {[%clk 0:00:25.5]} 33. f3 {[%clk 0:00:15.3]}
33... Ne2+ {[%clk 0:00:22.6]} 34. Kf2 {[%clk 0:00:14]} 34... Nf4 {[%clk
0:00:23.3]} 35. Rcc7 {[%clk 0:00:14]} 35... Rg6 {[%clk 0:00:21.9]} 36. g4 {[%clk
0:00:13.5]} 36... Nxh3+ {[%clk 0:00:20.6]} 37. Kg3 {[%clk 0:00:14]} 37... Ng1
{[%clk 0:00:20.8]} 38. f4 {[%clk 0:00:13.6]} 38... Ne2+ {[%clk 0:00:21.4]} 39.
Kf2 {[%clk 0:00:08.1]} 39... Nxf4 {[%clk 0:00:22]} 40. Ra7 {[%clk 0:00:08.8]}
40... Nd3+ {[%clk 0:00:22]} 41. Ke3 {[%clk 0:00:07.8]} 41... Ne5 {[%clk
0:00:22.9]} 42. Rdc7 {[%clk 0:00:08.2]} 42... Nxg4+ {[%clk 0:00:23]} 43. Kd4
{[%clk 0:00:08.9]} 43... Nf6 {[%clk 0:00:19.7]} 44. Rxa6 {[%clk 0:00:07.6]}
44... Rg4+ {[%clk 0:00:19.9]} 45. Kc5 {[%clk 0:00:04.1]} 45... Rc4+ {[%clk
0:00:19.1]} 46. Kb6 {[%clk 0:00:04.6]} 46... Rb4+ {[%clk 0:00:14.6]} 47. Kc5
{[%clk 0:00:03.7]} 47... Rc4+ {[%clk 0:00:10.1]} 48. Kb6 {[%clk 0:00:04]} 48...
Rb4+ {[%clk 0:00:10.7]} 49. Kc5 {[%clk 0:00:03.5]} 49... Rb3 {[%clk 0:00:11.3]}
50. a5 {[%clk 0:00:03.6]} 50... Ne4+ {[%clk 0:00:11.7]} 51. Kd4 {[%clk
0:00:03.1]} 51... Ra3 {[%clk 0:00:11.4]} 52. Raa7 {[%clk 0:00:03.1]} 52... Ra4+
{[%clk 0:00:11.3]} 53. Ke5 {[%clk 0:00:03.1]} 53... Kh6 {[%clk 0:00:10.4]} 54.
Rxg7 {[%clk 0:00:03.5]} 54... Ng5 {[%clk 0:00:10.7]} 55. Rg8 {[%clk 0:00:03.1]}
55... Kh5 {[%clk 0:00:10.3]} 56. Rag7 {[%clk 0:00:02.3]} 56... Rg4 {[%clk
0:00:09.4]} 57. Kd6 {[%clk 0:00:02.4]} 57... Kh4 {[%clk 0:00:08.8]} 58. Ke7
{[%clk 0:00:02.8]} 58... Rg3 {[%clk 0:00:06.8]} 59. a6 {[%clk 0:00:03.2]} 59...
Rg4 {[%clk 0:00:07]} 60. a7 {[%clk 0:00:03.5]} 60... e5 {[%clk 0:00:07.4]} 61.
a8=Q {[%clk 0:00:03.5]} 61... Bxa8 {[%clk 0:00:07.8]} 62. Rxa8 {[%clk
0:00:04.1]} 62... e4 {[%clk 0:00:07.9]} 63. Rh8+ {[%clk 0:00:04.1]} 63... Kg3
{[%clk 0:00:08.2]} 64. Kf6 {[%clk 0:00:04.8]} 64... Nf3 {[%clk 0:00:07.7]} 65.
Rxg4+ {[%clk 0:00:04.6]} 65... Kxg4 {[%clk 0:00:08.6]} 66. Re8 {[%clk
0:00:04.6]} 66... Kf4 {[%clk 0:00:08.8]} 67. Ke6 {[%clk 0:00:03]} 67... e3
{[%clk 0:00:08.3]} 68. Kd5 {[%clk 0:00:03.6]} 68... Ng1 {[%clk 0:00:06]} 69. Kd4
{[%clk 0:00:03.6]} 69... e2 {[%clk 0:00:06.1]} 70. Kd3 {[%clk 0:00:04]} 70...
Kg3 {[%clk 0:00:06.5]} 71. Re3+ {[%clk 0:00:02.4]} 71... Kf2 {[%clk 0:00:06.5]}
72. Rxe2+ {[%clk 0:00:02.5]} 72... Nxe2 {[%clk 0:00:07.4]} 1/2-1/2

[Event "Early-Titled-Tuesday-Blitz-May-14-2024"]
[Site "Chess.com"]
[Date "2024.05.14"]
[Round "9"]
[White "FXDon77"]
[Black "NikitaShnadrygin"]
[Result "0-1"]
[WhiteElo "2861"]
[BlackElo "2755"]
[TimeControl "180+1"]
[EndTime "9:48:31 PDT"]
[Termination "NikitaShnadrygin won by resignation"]

1. e4 {[%clk 0:03:00.9]} 1... c5 {[%clk 0:03:00]} 2. Nf3 {[%clk 0:03:00.7]} 2...
e6 {[%clk 0:03:00.5]} 3. d4 {[%clk 0:03:00.4]} 3... cxd4 {[%clk 0:03:01.4]} 4.
Nxd4 {[%clk 0:03:01.1]} 4... Nf6 {[%clk 0:03:02.1]} 5. Nc3 {[%clk 0:03:00.9]}
5... Nc6 {[%clk 0:03:02.6]} 6. a3 {[%clk 0:02:55.6]} 6... Be7 {[%clk 0:03:01.8]}
7. Be2 {[%clk 0:02:55.2]} 7... O-O {[%clk 0:03:01.8]} 8. O-O {[%clk 0:02:55.1]}
8... d5 {[%clk 0:03:01.6]} 9. exd5 {[%clk 0:02:52.6]} 9... exd5 {[%clk
0:03:02.5]} 10. Be3 {[%clk 0:02:48.6]} 10... Ne5 {[%clk 0:03:00.8]} 11. h3
{[%clk 0:02:48.4]} 11... Bd7 {[%clk 0:02:58.9]} 12. Re1 {[%clk 0:02:48.4]} 12...
Rc8 {[%clk 0:02:56]} 13. Bg5 {[%clk 0:02:30.4]} 13... Bc6 {[%clk 0:01:34.8]} 14.
Nf5 {[%clk 0:02:11.9]} 14... Bc5 {[%clk 0:01:31.2]} 15. Bd3 {[%clk 0:01:43.9]}
15... Re8 {[%clk 0:01:10.9]} 16. Qd2 {[%clk 0:01:35.8]} 16... Nxd3 {[%clk
0:00:50.5]} 17. cxd3 {[%clk 0:01:31.9]} 17... d4 {[%clk 0:00:36]} 18. Rxe8+
{[%clk 0:01:19.2]} 18... Bxe8 {[%clk 0:00:35.7]} 19. Ne2 {[%clk 0:00:57.1]}
19... Qd5 {[%clk 0:00:35.1]} 20. Neg3 {[%clk 0:00:47.2]} 20... Bc6 {[%clk
0:00:30.9]} 21. f3 {[%clk 0:00:41.1]} 21... Nh5 {[%clk 0:00:29.6]} 22. Re1
{[%clk 0:00:31.7]} 22... Nxg3 {[%clk 0:00:28.9]} 23. Nxg3 {[%clk 0:00:31.4]}
23... h6 {[%clk 0:00:22.3]} 24. Bf4 {[%clk 0:00:27.7]} 24... Re8 {[%clk
0:00:18.4]} 25. Rxe8+ {[%clk 0:00:24.3]} 25... Bxe8 {[%clk 0:00:19.3]} 26. Ne4
{[%clk 0:00:24.6]} 26... Be7 {[%clk 0:00:18.1]} 27. Qe1 {[%clk 0:00:21.6]} 27...
Kf8 {[%clk 0:00:16.1]} 28. Bd2 {[%clk 0:00:19.4]} 28... f5 {[%clk 0:00:14.5]}
29. Nf2 {[%clk 0:00:18.1]} 29... Kf7 {[%clk 0:00:12.7]} 30. Bb4 {[%clk
0:00:16.5]} 30... Bf6 {[%clk 0:00:13.2]} 31. Qc1 {[%clk 0:00:13.2]} 31... Qc6
{[%clk 0:00:12]} 32. Qd1 {[%clk 0:00:12.2]} 32... Qd5 {[%clk 0:00:11.9]} 33. Qc2
{[%clk 0:00:11.1]} 33... Bc6 {[%clk 0:00:12.4]} 34. Nh1 {[%clk 0:00:06.7]} 34...
Bg5 {[%clk 0:00:12.7]} 35. Ng3 {[%clk 0:00:06.7]} 35... Be3+ {[%clk 0:00:13]}
36. Kh1 {[%clk 0:00:07.2]} 36... g5 {[%clk 0:00:12]} 37. Qc5 {[%clk 0:00:05.6]}
37... Qxc5 {[%clk 0:00:10]} 38. Bxc5 {[%clk 0:00:06.2]} 38... b6 {[%clk
0:00:10.5]} 39. Bd6 {[%clk 0:00:06.5]} 39... Ke6 {[%clk 0:00:10.6]} 40. Bf8
{[%clk 0:00:06.5]} 40... Kf7 {[%clk 0:00:06.7]} 41. Bb4 {[%clk 0:00:02.7]} 41...
Kg6 {[%clk 0:00:07.2]} 42. Ne2 {[%clk 0:00:02.3]} 42... Bb5 {[%clk 0:00:07.2]}
43. Kh2 {[%clk 0:00:01.5]} 43... Bxd3 {[%clk 0:00:07.5]} 44. Ng3 {[%clk
0:00:02]} 44... Bf4 {[%clk 0:00:07.3]} 45. Be1 {[%clk 0:00:01.6]} 45... h5
{[%clk 0:00:07.7]} 46. Kg1 {[%clk 0:00:02.2]} 46... Be3+ {[%clk 0:00:08.2]} 47.
Bf2 {[%clk 0:00:02]} 47... f4 {[%clk 0:00:08.9]} 48. Nh1 {[%clk 0:00:01.7]}
48... Kf5 {[%clk 0:00:08.8]} 49. g4+ {[%clk 0:00:01.4]} 49... hxg4 {[%clk
0:00:09.6]} 50. hxg4+ {[%clk 0:00:01.8]} 50... Ke5 {[%clk 0:00:10.2]} 51. Kg2
{[%clk 0:00:02.2]} 51... Be2 {[%clk 0:00:09.6]} 52. Be1 {[%clk 0:00:03]} 52...
d3 {[%clk 0:00:08.9]} 53. Nf2 {[%clk 0:00:02]} 53... d2 {[%clk 0:00:06.2]} 54.
Bxd2 {[%clk 0:00:02.5]} 54... Bxd2 {[%clk 0:00:07.1]} 55. Ne4 {[%clk 0:00:03.4]}
55... Bc1 {[%clk 0:00:07.3]} 56. Nxg5 {[%clk 0:00:04.1]} 56... Bd3 {[%clk
0:00:07]} 57. Nf7+ {[%clk 0:00:02.6]} 57... Kf6 {[%clk 0:00:07.6]} 58. Nd6
{[%clk 0:00:02.3]} 58... Bxb2 {[%clk 0:00:07.6]} 59. Nc8 {[%clk 0:00:03]} 59...
Bxa3 {[%clk 0:00:07]} 60. Nxa7 {[%clk 0:00:03.7]} 60... Bc4 {[%clk 0:00:04.9]}
61. Kf2 {[%clk 0:00:04]} 61... Bc5+ {[%clk 0:00:04.5]} 62. Ke1 {[%clk
0:00:04.7]} 62... Bd5 {[%clk 0:00:04.9]} 63. Nb5 {[%clk 0:00:05]} 63... Bc6
{[%clk 0:00:05.1]} 64. Nc3 {[%clk 0:00:03.1]} 64... Bb4 {[%clk 0:00:05.5]} 65.
Kd2 {[%clk 0:00:03.2]} 65... Bxc3+ {[%clk 0:00:06.4]} 66. Kxc3 {[%clk
0:00:03.7]} 66... Bxf3 {[%clk 0:00:07.3]} 67. Kd4 {[%clk 0:00:04.6]} 67... Kg5
{[%clk 0:00:07.4]} 0-1

[Event "Early-Titled-Tuesday-Blitz-May-14-2024"]
[Site "Chess.com"]
[Date "2024.05.14"]
[Round "9"]
[White "Dolphin_2010"]
[Black "praveenb2002"]
[Result "0-1"]
[WhiteElo "2625"]
[BlackElo "2845"]
[TimeControl "180+1"]
[EndTime "9:48:34 PDT"]
[Termination "praveenb2002 won by resignation"]

1. d4 {[%clk 0:02:59.2]} 1... Nf6 {[%clk 0:02:56.6]} 2. Bg5 {[%clk 0:02:58.1]}
2... Ne4 {[%clk 0:02:53.3]} 3. Bf4 {[%clk 0:02:57.9]} 3... c5 {[%clk 0:02:53.6]}
4. f3 {[%clk 0:02:56.3]} 4... Qa5+ {[%clk 0:02:50]} 5. c3 {[%clk 0:02:56.8]}
5... Nf6 {[%clk 0:02:48.9]} 6. d5 {[%clk 0:02:57.2]} 6... d6 {[%clk 0:02:47.6]}
7. e4 {[%clk 0:02:57.6]} 7... g6 {[%clk 0:02:46.8]} 8. Bd3 {[%clk 0:02:52.8]}
8... Bg7 {[%clk 0:02:44.4]} 9. Nd2 {[%clk 0:02:51.3]} 9... O-O {[%clk
0:02:44.1]} 10. Ne2 {[%clk 0:02:51.7]} 10... Nbd7 {[%clk 0:02:39.1]} 11. O-O
{[%clk 0:02:51.3]} 11... Ne5 {[%clk 0:02:36.6]} 12. Bxe5 {[%clk 0:02:49.6]}
12... dxe5 {[%clk 0:02:37.5]} 13. Rc1 {[%clk 0:02:47.4]} 13... Bh6 {[%clk
0:02:22.4]} 14. Kh1 {[%clk 0:02:47.1]} 14... e6 {[%clk 0:02:15.2]} 15. Nc4
{[%clk 0:02:40.1]} 15... Qd8 {[%clk 0:02:13.4]} 16. dxe6 {[%clk 0:02:28.6]}
16... Bxe6 {[%clk 0:02:09.6]} 17. Rb1 {[%clk 0:02:25.3]} 17... Qc7 {[%clk
0:01:45.8]} 18. Na3 {[%clk 0:01:27.5]} 18... Rfd8 {[%clk 0:01:40.2]} 19. c4
{[%clk 0:01:21.7]} 19... Rd7 {[%clk 0:01:31.3]} 20. Nc3 {[%clk 0:01:17.1]} 20...
a6 {[%clk 0:01:23.1]} 21. Nd5 {[%clk 0:01:12.8]} 21... Bxd5 {[%clk 0:01:20.7]}
22. cxd5 {[%clk 0:01:07.3]} 22... b5 {[%clk 0:01:20.2]} 23. Be2 {[%clk
0:01:03.9]} 23... c4 {[%clk 0:01:14.8]} 24. Nc2 {[%clk 0:00:59]} 24... Qc5
{[%clk 0:01:14.1]} 25. Qe1 {[%clk 0:00:27.8]} 25... a5 {[%clk 0:01:14]} 26. Qh4
{[%clk 0:00:24.9]} 26... Kg7 {[%clk 0:01:10.5]} 27. Qf2 {[%clk 0:00:14.2]} 27...
Rc8 {[%clk 0:01:08.3]} 28. Qxc5 {[%clk 0:00:13.5]} 28... Rxc5 {[%clk 0:01:09.2]}
29. a3 {[%clk 0:00:10.8]} 29... Ne8 {[%clk 0:01:09]} 30. Kg1 {[%clk 0:00:07.9]}
30... Nd6 {[%clk 0:01:09.1]} 31. Kf2 {[%clk 0:00:08.1]} 31... f5 {[%clk
0:01:09.3]} 32. exf5 {[%clk 0:00:07]} 32... gxf5 {[%clk 0:01:07.9]} 33. Rfd1
{[%clk 0:00:07.5]} 33... Ne8 {[%clk 0:01:04.2]} 34. Ne3 {[%clk 0:00:06.2]} 34...
Bxe3+ {[%clk 0:00:59.6]} 35. Kxe3 {[%clk 0:00:07.1]} 35... Rcxd5 {[%clk
0:00:58.9]} 36. Rxd5 {[%clk 0:00:06.7]} 36... Rxd5 {[%clk 0:00:59.8]} 37. a4
{[%clk 0:00:07.4]} 37... Nd6 {[%clk 0:00:58.5]} 38. axb5 {[%clk 0:00:05.3]}
38... Rxb5 {[%clk 0:00:59.4]} 39. Rd1 {[%clk 0:00:04.8]} 39... Rb3+ {[%clk
0:00:54.1]} 40. Kf2 {[%clk 0:00:04.7]} 40... Rb6 {[%clk 0:00:54.2]} 41. Rd5
{[%clk 0:00:04.5]} 41... Kf6 {[%clk 0:00:54.3]} 42. Ke3 {[%clk 0:00:03.9]} 42...
Ke6 {[%clk 0:00:44.4]} 43. Rxa5 {[%clk 0:00:04]} 43... Rb3+ {[%clk 0:00:45]} 44.
Kd2 {[%clk 0:00:04.4]} 44... Rxb2+ {[%clk 0:00:45.2]} 45. Ke1 {[%clk 0:00:02.8]}
45... c3 {[%clk 0:00:43.1]} 46. Rc5 {[%clk 0:00:02.3]} 46... c2 {[%clk
0:00:38.4]} 47. Bd3 {[%clk 0:00:02.7]} 47... c1=Q+ {[%clk 0:00:35.9]} 48. Rxc1
{[%clk 0:00:03.6]} 48... Rxg2 {[%clk 0:00:36.5]} 49. Rc2 {[%clk 0:00:02.4]}
49... Rxc2 {[%clk 0:00:32.4]} 50. Bxc2 {[%clk 0:00:03.3]} 50... Kd5 {[%clk
0:00:32.7]} 51. Ke2 {[%clk 0:00:02.6]} 51... Kd4 {[%clk 0:00:33.2]} 52. Bb1
{[%clk 0:00:02.6]} 52... h6 {[%clk 0:00:32.4]} 53. Bc2 {[%clk 0:00:02.5]} 53...
f4 {[%clk 0:00:29.3]} 54. Bb3 {[%clk 0:00:01.3]} 54... Nb5 {[%clk 0:00:29.4]}
55. Bf7 {[%clk 0:00:01.3]} 55... Kc3 {[%clk 0:00:29.6]} 56. Bg6 {[%clk
0:00:00.7]} 56... Nd4+ {[%clk 0:00:30.1]} 57. Kf2 {[%clk 0:00:01.4]} 57... Kd2
{[%clk 0:00:30.7]} 58. Be4 {[%clk 0:00:02]} 58... Nb5 {[%clk 0:00:30]} 59. Ba8
{[%clk 0:00:02.7]} 59... Nc3 {[%clk 0:00:30.5]} 60. Bc6 {[%clk 0:00:03.3]} 60...
Nd1+ {[%clk 0:00:31]} 61. Kf1 {[%clk 0:00:03.2]} 61... Ke3 {[%clk 0:00:31.3]}
62. Kg2 {[%clk 0:00:02.3]} 62... Nb2 {[%clk 0:00:30.4]} 63. Bb7 {[%clk
0:00:02.7]} 63... Nd3 {[%clk 0:00:30.8]} 64. Kf1 {[%clk 0:00:03.3]} 64... Nc5
{[%clk 0:00:28.2]} 65. Bd5 {[%clk 0:00:03.8]} 65... Nd3 {[%clk 0:00:21.2]} 66.
Be4 {[%clk 0:00:03.7]} 66... Nb4 {[%clk 0:00:21]} 67. Bb7 {[%clk 0:00:03.9]}
67... Nc2 {[%clk 0:00:20.1]} 68. Bd5 {[%clk 0:00:02.3]} 68... Nd4 {[%clk
0:00:20]} 69. Kg2 {[%clk 0:00:02.7]} 69... Ke2 {[%clk 0:00:19.7]} 70. Bc4+
{[%clk 0:00:02.2]} 70... Ke1 {[%clk 0:00:19.7]} 71. Bd5 {[%clk 0:00:02.8]} 71...
Nc2 {[%clk 0:00:19.9]} 72. Kg1 {[%clk 0:00:02.1]} 72... Ne3 {[%clk 0:00:20]} 73.
Bc6 {[%clk 0:00:01.9]} 73... Ke2 {[%clk 0:00:20.2]} 74. Bb7 {[%clk 0:00:01.1]}
74... Nc2 {[%clk 0:00:19.6]} 75. Be4 {[%clk 0:00:00.9]} 75... Ne1 {[%clk
0:00:19.3]} 76. h4 {[%clk 0:00:00.2]} 76... Nxf3+ {[%clk 0:00:19.1]} 77. Kg2
{[%clk 0:00:01.1]} 77... Nxh4+ {[%clk 0:00:19.5]} 78. Kh3 {[%clk 0:00:02]} 78...
Nf3 {[%clk 0:00:19.4]} 79. Kg4 {[%clk 0:00:02.8]} 79... Nd4 {[%clk 0:00:19.3]}
80. Kh4 {[%clk 0:00:01.1]} 80... f3 {[%clk 0:00:19.4]} 81. Kg3 {[%clk 0:00:02]}
81... f2 {[%clk 0:00:19.5]} 82. Bd3+ {[%clk 0:00:02.1]} 82... Kxd3 {[%clk
0:00:19.5]} 0-1

[Event "Early-Titled-Tuesday-Blitz-May-14-2024"]
[Site "Chess.com"]
[Date "2024.05.14"]
[Round "9"]
[White "ansko1999"]
[Black "GMSrinath"]
[Result "0-1"]
[WhiteElo "2645"]
[BlackElo "2827"]
[TimeControl "180+1"]
[EndTime "9:48:46 PDT"]
[Termination "GMSrinath won on time"]

1. c4 {[%clk 0:03:00.9]} 1... e5 {[%clk 0:02:57.8]} 2. Nf3 {[%clk 0:03:00.6]}
2... d6 {[%clk 0:02:58.2]} 3. d4 {[%clk 0:02:58.4]} 3... e4 {[%clk 0:02:57.6]}
4. Nfd2 {[%clk 0:02:58.3]} 4... f5 {[%clk 0:02:58.2]} 5. e3 {[%clk 0:02:55.6]}
5... Nf6 {[%clk 0:02:58.5]} 6. Nc3 {[%clk 0:02:55.4]} 6... g6 {[%clk 0:02:59]}
7. f3 {[%clk 0:02:50]} 7... exf3 {[%clk 0:02:55.7]} 8. Nxf3 {[%clk 0:02:49.7]}
8... Bg7 {[%clk 0:02:56.2]} 9. Bd3 {[%clk 0:02:48.6]} 9... O-O {[%clk
0:02:56.1]} 10. O-O {[%clk 0:02:48.6]} 10... Re8 {[%clk 0:02:56.5]} 11. Qc2
{[%clk 0:02:42.9]} 11... Nc6 {[%clk 0:02:56.2]} 12. a3 {[%clk 0:02:41.9]} 12...
Bd7 {[%clk 0:02:56.1]} 13. Bd2 {[%clk 0:02:40.4]} 13... a5 {[%clk 0:02:55.8]}
14. Rad1 {[%clk 0:02:36.9]} 14... Re7 {[%clk 0:02:54.3]} 15. Bc1 {[%clk
0:02:32.8]} 15... Qe8 {[%clk 0:02:48.3]} 16. Rfe1 {[%clk 0:02:29.8]} 16... Ng4
{[%clk 0:02:48.1]} 17. Nd5 {[%clk 0:02:24.6]} 17... Rc8 {[%clk 0:02:03.5]} 18.
Nxe7+ {[%clk 0:02:21.9]} 18... Qxe7 {[%clk 0:02:04.4]} 19. h3 {[%clk 0:02:12.5]}
19... Nf6 {[%clk 0:02:03.4]} 20. e4 {[%clk 0:02:02.9]} 20... fxe4 {[%clk
0:02:02.1]} 21. Bxe4 {[%clk 0:02:03.5]} 21... Nxe4 {[%clk 0:02:00.7]} 22. Qxe4
{[%clk 0:02:01.6]} 22... Qf8 {[%clk 0:01:50.6]} 23. Qd5+ {[%clk 0:01:46.9]}
23... Kh8 {[%clk 0:01:49.9]} 24. Ng5 {[%clk 0:01:41.8]} 24... h6 {[%clk
0:01:48.5]} 25. Rf1 {[%clk 0:01:38.1]} 25... Bf5 {[%clk 0:01:37.3]} 26. Ne6
{[%clk 0:01:33.2]} 26... Qe7 {[%clk 0:01:30.7]} 27. Nxg7 {[%clk 0:01:32.4]}
27... Qxg7 {[%clk 0:01:31.6]} 28. g4 {[%clk 0:01:12.1]} 28... Ne7 {[%clk
0:01:24]} 29. Qxb7 {[%clk 0:00:55.6]} 29... Bd7 {[%clk 0:01:24.5]} 30. Qf3
{[%clk 0:00:55.6]} 30... Re8 {[%clk 0:01:06.2]} 31. Qf7 {[%clk 0:00:50.9]} 31...
Qxf7 {[%clk 0:01:01.7]} 32. Rxf7 {[%clk 0:00:51.8]} 32... Be6 {[%clk 0:01:02.5]}
33. Rf6 {[%clk 0:00:44.9]} 33... Bxc4 {[%clk 0:01:02.2]} 34. Re1 {[%clk
0:00:41.4]} 34... Kg7 {[%clk 0:01:02.3]} 35. g5 {[%clk 0:00:37.5]} 35... Bf7
{[%clk 0:00:46.6]} 36. b4 {[%clk 0:00:24.2]} 36... axb4 {[%clk 0:00:24.5]} 37.
axb4 {[%clk 0:00:25.1]} 37... hxg5 {[%clk 0:00:24.3]} 38. Bxg5 {[%clk
0:00:23.3]} 38... Nd5 {[%clk 0:00:24.2]} 39. Rxe8 {[%clk 0:00:20.5]} 39... Bxe8
{[%clk 0:00:25.1]} 40. Re6 {[%clk 0:00:13.2]} 40... Bd7 {[%clk 0:00:19.2]} 41.
Re1 {[%clk 0:00:11.3]} 41... Bxh3 {[%clk 0:00:18.7]} 42. Bd2 {[%clk 0:00:06.8]}
42... Kf7 {[%clk 0:00:18.5]} 43. Kf2 {[%clk 0:00:06.4]} 43... Kf6 {[%clk
0:00:16.9]} 44. Kf3 {[%clk 0:00:06.1]} 44... Bf5 {[%clk 0:00:16.5]} 45. Rc1
{[%clk 0:00:05.2]} 45... g5 {[%clk 0:00:16.1]} 46. Ra1 {[%clk 0:00:04]} 46...
g4+ {[%clk 0:00:16.4]} 47. Kg3 {[%clk 0:00:04.5]} 47... Ke6 {[%clk 0:00:17.3]}
48. Re1+ {[%clk 0:00:04.4]} 48... Kd7 {[%clk 0:00:17.4]} 49. Rf1 {[%clk
0:00:05.3]} 49... Be6 {[%clk 0:00:17.8]} 50. Re1 {[%clk 0:00:05.4]} 50... Ne7
{[%clk 0:00:15.9]} 51. Kf4 {[%clk 0:00:04.1]} 51... Nd5+ {[%clk 0:00:11.6]} 52.
Kg3 {[%clk 0:00:04.3]} 52... c6 {[%clk 0:00:10.9]} 53. Rb1 {[%clk 0:00:02.8]}
53... Ne7 {[%clk 0:00:10.8]} 54. Re1 {[%clk 0:00:03.3]} 54... Nf5+ {[%clk
0:00:10.9]} 55. Kf4 {[%clk 0:00:03.2]} 55... Nxd4 {[%clk 0:00:11.3]} 56. Re3
{[%clk 0:00:02.7]} 56... Nb5 {[%clk 0:00:07.4]} 57. Be1 {[%clk 0:00:02.7]} 57...
Nc7 {[%clk 0:00:07.5]} 58. Kg5 {[%clk 0:00:03.2]} 58... Nd5 {[%clk 0:00:07.5]}
59. Ra3 {[%clk 0:00:03.6]} 59... Kc7 {[%clk 0:00:04.5]} 60. Ra7+ {[%clk
0:00:03.9]} 60... Kb6 {[%clk 0:00:05]} 61. Bf2+ {[%clk 0:00:03.6]} 61... Kb5
{[%clk 0:00:05.2]} 62. Rb7+ {[%clk 0:00:04.3]} 62... Kc4 {[%clk 0:00:05.5]} 63.
Rb8 {[%clk 0:00:04.3]} 63... Nxb4 {[%clk 0:00:04.6]} 64. Bg3 {[%clk 0:00:03.6]}
64... d5 {[%clk 0:00:03.9]} 65. Be5 {[%clk 0:00:03.4]} 65... Nd3 {[%clk
0:00:03.9]} 66. Bd6 {[%clk 0:00:02.9]} 66... d4 {[%clk 0:00:03.5]} 67. Re8
{[%clk 0:00:02.9]} 67... Kd5 {[%clk 0:00:03.8]} 68. Rd8 {[%clk 0:00:02.7]} 68...
Ke4 {[%clk 0:00:03.4]} 69. Be7 {[%clk 0:00:01.7]} 69... c5 {[%clk 0:00:02.5]}
70. Rd6 {[%clk 0:00:02.2]} 70... Bd5 {[%clk 0:00:03]} 71. Bf6 {[%clk 0:00:02]}
71... c4 {[%clk 0:00:03.6]} 72. Rd8 {[%clk 0:00:02]} 72... c3 {[%clk 0:00:04.2]}
73. Kxg4 {[%clk 0:00:01.6]} 73... Nc5 {[%clk 0:00:03.3]} 74. Bg5 {[%clk
0:00:00.9]} 74... Ne6 {[%clk 0:00:02.4]} 75. Rc8 {[%clk 0:00:00.6]} 75... d3
{[%clk 0:00:02.5]} 0-1